Workbook

Sheet ORÇAMENTO
A1: <---- NUMERAR SERVIÇOS PARA CPU | C1: Ministério do Desenvolvimento Regional
C2: Companhia de Desenvolvimento dos Vales do São Francisco e do Parnaíba
C3: 1ª Superintendência Regional
B5: OBRA: | C5: PAVIMENTAÇÃO ASFÁLTICA EM CBUQ – ITEM 1 – DIVERSOS LOGRADOUROS - NINHEIRA/MG (SEDE MUNICIPAL)
B6: DATA: | C6: SETEMBRO / 2023 | G6: BDI Serviços: | I6: ='BDI SERV'!D31/100 -> 0.2355
B7: PRAZO DE EXECUÇÃO: 180 DIAS | G7: BDI Fornecimento: | I7: ='BDI FORN'!D31/100 -> 0.15
B8: ITEM | C8: DISCRIMINAÇÃO | D8: REFER. | E8: UNID. | F8: QUANT. | G8: P. UNITÁRIO | H8: P.UNIT.C/ BDI | I8: P. TOTAL
A9: A | B9: 1 | C9: SERVIÇOS PRELIMINARES | I9: =SUM(I10:I14) -> 179305.91
A10: 1 | B10: 1.1 | C10: MOBILIZAÇÃO E DESMOBILIZAÇÃO | D10: CPU.1 | E10: GL | F10: 1 | G10: =VLOOKUP(A10,CPU!$A$1:$N$4739,9) -> 8735.64 | H10: =VLOOKUP(A10,CPU!$A$1:$N$4739,10) -> 10792.88 | I10: =ROUND(F10*H10,2) -> 10792.88
A11: 2 | B11: 1.2 | C11: ADMINISTRAÇÃO LOCAL | D11: CPU.2 | E11: GL | F11: 1 | G11: =VLOOKUP(A11,CPU!$A$1:$N$4739,9) -> 113396.28 | H11: =VLOOKUP(A11,CPU!$A$1:$N$4739,10) -> 140101.1 | I11: =ROUND(F11*H11,2) -> 140101.1
A12: 3 | B12: 1.3 | C12: CANTEIRO DE OBRAS | D12: CPU.3 | E12: GL | F12: 1 | G12: =VLOOKUP(A12,CPU!$A$1:$N$4739,9) -> 13831.5 | H12: =VLOOKUP(A12,CPU!$A$1:$N$4739,10) -> 17088.82 | I12: =ROUND(F12*H12,2) -> 17088.82
A13: 4 | B13: 1.4 | C13: PLACA DE OBRA EM CHAPA DE AÇO GALVANIZADO | D13: 103689 | E13: M2 | F13: 4.5 | G13: =VLOOKUP(A13,CPU!$A$1:$N$4739,9) -> 340.5 | H13: =VLOOKUP(A13,CPU!$A$1:$N$4739,10) -> 420.69 | I13: =ROUND(F13*H13,2) -> 1893.11
A14: 5 | B14: 1.5 | C14: SERVIÇOS TOPOGRÁFICOS PARA PAVIMENTAÇÃO, INCLUSIVE NOTA DE SERVIÇO, ACOMPANHAMENTO E GREIDE | D14: 78472 | E14: M2 | F14: 23000 | G14: =VLOOKUP(A14,CPU!$A$1:$N$4739,9) -> 0.33 | H14: =VLOOKUP(A14,CPU!$A$1:$N$4739,10) -> 0.41 | I14: =ROUND(F14*H14,2) -> 9430
A15: B | B15: 2 | C15: PAVIMENTAÇÃO | I15: =SUM(I16:I23) -> 421012.52
A16: 6 | B16: 2.1 | C16: ESCAVAÇÃO HORIZONTAL EM SOLO DE 1A CATEGORIA | D16: 101116 | E16: M3 | F16: 7500 | G16: =VLOOKUP(A16,CPU!$A$1:$N$4739,9) -> 2.2 | H16: =VLOOKUP(A16,CPU!$A$1:$N$4739,10) -> 2.72 | I16: =ROUND(F16*H16,2) -> 20400
A17: 7 | B17: 2.2 | C17: CARGA, MANOBRA E DESCARGA DE SOLOS E MATERIAIS GRANULARES EM CAMINHÃO BASCULANTE | D17: 100976 | E17: M3 | F17: 7500 | G17: =VLOOKUP(A17,CPU!$A$1:$N$4739,9) -> 8.71 | H17: =VLOOKUP(A17,CPU!$A$1:$N$4739,10) -> 10.76 | I17: 80700
A18: 8 | B18: 2.3 | C18: REGULARIZAÇÃO E COMPACTAÇÃO DO SUBLEITO | D18: 100576 | E18: M2 | F18: 24000 | G18: =VLOOKUP(A18,CPU!$A$1:$N$4739,9) -> 2.57 | H18: =VLOOKUP(A18,CPU!$A$1:$N$4739,10) -> 3.18 | I18: 76320
A19: 8.5 | B19: 2.4 | C19: CASCALHO DE CAVA - (EXCLUSIVE CARGA/TRANSPORTE) | D19: - | E19: M3 | F19: 3500 | G19: FORNECIDO PELA PREFEITURA | I19: -
A20: 9 | B20: 2.5 | C20: EXECUÇÃO E COMPACTAÇÃO DE BASE E OU SUB BASE PARA PAVIMENTAÇÃO EM CASCALHO - EXCLUSIVE SOLO, ESCAVAÇÃO, CARGA E TRANSPORTE. | D20: 96388 | E20: M3 | F20: 3500 | G20: =VLOOKUP(A20,CPU!$A$1:$N$4739,9) -> 12.47 | H20: =VLOOKUP(A20,CPU!$A$1:$N$4739,10) -> 15.41 | I20: 53935
A21: 10 | B21: 2.6 | C21: IMPRIMAÇÃO COM EMULSÃO ASFÁLTICA DE IMPRIMAÇÃO (EAI) | D21: 96401 | E21: M2 | F21: 23000 | G21: =VLOOKUP(A21,CPU!$A$1:$N$4739,9) -> 1.23 | H21: =VLOOKUP(A21,CPU!$A$1:$N$4739,10) -> 1.52 | I21: 34960
A22: 11 | B22: 2.7 | C22: PINTURA DE LIGAÇÃO COM EMULSÃO ASFÁLTICA RR-1C | D22: 96402 | E22: M2 | F22: 20000 | G22: =VLOOKUP(A22,CPU!$A$1:$N$4739,9) -> 1.01 | H22: =VLOOKUP(A22,CPU!$A$1:$N$4739,10) -> 1.25 | I22: 25000
A23: 12 | B23: 2.8 | C23: EXECUÇÃO DE PAVIMENTO COM APLICAÇÃO DE CONCRETO ASFÁLTICO USINADO A QUENTE (CBUQ), CAMADA DE ROLAMENTO - EXCLUSIVE TRANSPORTE | D23: 95995 | E23: M3 | F23: 810.002 | G23: =VLOOKUP(A23,CPU!$A$1:$N$4739,9) -> 129.6 | H23: =VLOOKUP(A23,CPU!$A$1:$N$4739,10) -> 160.12 | I23: 129697.52
A24: C | B24: 3 | C24: TRANSPORTE DE MATERIAIS | I24: =SUM(I25:I27) -> 39242.31
A25: 13 | B25: 3.1 | C25: TRANSPORTE COM CAMINHÃO BASCULANTE, EM VIA URBANA EM REVESTIMENTO PRIMÁRIO | D25: 95426 | E25: M3XKM | F25: 16000 | G25: =VLOOKUP(A25,CPU!$A$1:$N$4739,9) -> 1.24 | H25: =VLOOKUP(A25,CPU!$A$1:$N$4739,10) -> 1.53202 | I25: =ROUND(F25*H25,2) -> 24512.32
A26: 13.5 | B26: 3.2 | C26: TRANSPORTE COM CAMINHÃO BASCULANTE, EM VIA URBANA PAVIMENTADA | D26: 95427 | E26: M3XKM | F26: 11999.9996 | G26: =VLOOKUP(A26,CPU!$A$1:$N$4739,9) -> 0.73 | H26: =VLOOKUP(A26,CPU!$A$1:$N$4739,10) -> 0.9 | I26: =ROUND(F26*H26,2) -> 10800
A27: 14 | B27: 3.3 | C27: TRANSPORTE COM CAMINHÃO CARROCERIA 9T, EM VIA URBANA PAVIMENTADA | D27: 100947 | E27: TXKM | F27: 1499.995073 | G27: =VLOOKUP(A27,CPU!$A$1:$N$4739,9) -> 2.12 | H27: =VLOOKUP(A27,CPU!$A$1:$N$4739,10) -> 2.62 | I27: =ROUND(F27*H27,2) -> 3929.99
A28: D | B28: 4 | C28: TRANSPORTE DE MATERIAL ASFÁLTICO (BDI DIFERENCIADO) | I28: =SUM(I29:I31) -> 256700
A29: 15 | B29: 4.1 | C29: TRANSPORTE DE MASSA ASFÁLTICA COM CAMINHÃO BASCULANTE, EM VIA URBANA PAVIMENTADA (BDI DIFERENCIADO) | D29: 95430 | E29: TXKM | F29: 150000 | G29: =VLOOKUP(A29,CPU!$A$1:$N$4739,9) -> 0.45 | H29: =VLOOKUP(A29,CPU!$A$1:$N$4739,10) -> 0.52 | I29: =ROUND(F29*H29,2) -> 78000
A30: 15.5 | B30: 4.2 | C30: TRANSPORTE DE MASSA ASFÁLTICA COM CAMINHÃO BASCULANTE, EM VIA DE REVESTIMENTO PRIMÁRIO (BDI DIFERENCIADO) | D30: 95429 | E30: TXKM | F30: 145000 | G30: =VLOOKUP(A30,CPU!$A$1:$N$4739,9) -> 0.96 | H30: =VLOOKUP(A30,CPU!$A$1:$N$4739,10) -> 1.1 | I30: =ROUND(F30*H30,2) -> 159500
A31: 16 | B31: 4.2 | C31: TRANSPORTE COM CAMINHÃO TANQUE DE TRANSPORTE DE MATERIAL ASFÁLTICO DE 30000 L, EM VIA URBANA PAVIMENTADA (BDI DIFERENCIADO) | D31: 102331 | E31: TXKM | F31: 32000 | G31: =VLOOKUP(A31,CPU!$A$1:$N$4739,9) -> 0.52 | H31: =VLOOKUP(A31,CPU!$A$1:$N$4739,10) -> 0.6 | I31: =ROUND(F31*H31,2) -> 19200
A32: E | B32: 5 | C32: OBRAS COMPLEMENTARES | I32: =SUM(I33:I39) -> 758203.91
A33: 17 | B33: 5.1 | C33: ASSENTAMENTO DE GUIA (MEIO-FIO) EM TRECHO RETO, CONFECCIONADA EM CONCRETO PRÉ-FABRICADO, DIMENSÕES 100X15X13X30 CM (COMPRIMENTO X BASE INFERIOR X BASE SUPERIOR X ALTURA), PARA VIAS URBANAS | D33: 94273a | E33: M | F33: 6100 | G33: =VLOOKUP(A33,CPU!$A$1:$N$4739,9) -> 48.56 | H33: =VLOOKUP(A33,CPU!$A$1:$N$4739,10) -> 60 | I33: =ROUND(F33*H33,2) -> 366000
A34: 17.5 | B34: 5.2 | C34: EXECUÇÃO DE SARJETA DE CONCRETO USINADO, MOLDADA IN LOCO, 30 CM BASE X 5 CM ALTURA | D34: 94287a | E34: M | F34: 5200 | G34: =VLOOKUP(A34,CPU!$A$1:$N$4739,9) -> 36.48 | H34: =VLOOKUP(A34,CPU!$A$1:$N$4739,10) -> 45.07 | I34: =ROUND(F34*H34,2) -> 234364
A35: 18 | B35: 5.3 | C35: PINTURA DE FAIXA DE PEDESTRE OU ZEBRADA TINTA RETRORREFLETIVA A BASE DE RESINA ACRÍLICA COM MICROESFERAS DE VIDRO, E = 30 CM, APLICAÇÃO MANUAL | D35: 102509 | E35: M2 | F35: 800 | G35: =VLOOKUP(A35,CPU!$A$1:$N$4739,9) -> 25.52 | H35: =VLOOKUP(A35,CPU!$A$1:$N$4739,10) -> 31.53 | I35: 25224
A36: 19 | B36: 5.4 | C36: FORNECIMENTO E INSTALAÇÃO DE PLACA DE SINALIZAÇÃO VIÁRIA - REGULAMENTAÇÃO (FAIXA DE PEDESTRE E OUTROS) | D36: CPU.4 | E36: UN. | F36: 65 | G36: =VLOOKUP(A36,CPU!$A$1:$N$4739,9) -> 384.81 | H36: =VLOOKUP(A36,CPU!$A$1:$N$4739,10) -> 475.43 | I36: 30902.95
A37: 20 | B37: 5.5 | C37: FORNECIMENTO E INSTALAÇÃO DE PLACA DE SINALIZAÇÃO VIÁRIA - REGULAMENTAÇÃO (PARE) | D37: CPU.5 | E37: UN. | F37: 40 | G37: =VLOOKUP(A37,CPU!$A$1:$N$4739,9) -> 444.73 | H37: =VLOOKUP(A37,CPU!$A$1:$N$4739,10) -> 549.46 | I37: 21978.4
A38: 21 | B38: 5.6 | C38: FORNECIMENTO E INSTALAÇÃO DE PLACA DE AÇO PARA IDENTIFICACAO DE RUA, *45 CM X 20* CM, INCLUSIVE SUPORTE EM TUBO DE AÇO GALVANIZADO | D38: CPU.6 | E38: UN. | F38: 28 | G38: =VLOOKUP(A38,CPU!$A$1:$N$4739,9) -> 322.15 | H38: =VLOOKUP(A38,CPU!$A$1:$N$4739,10) -> 398.02 | I38: 11144.56
A39: 22 | B39: 5.7 | C39: PINTURA DE EIXO VIÁRIO SOBRE ASFALTO COM TINTA RETRORREFLETIVA A BASE DE RESINA ACRÍLICA COM MICROESFERAS DE VIDRO, APLICAÇÃO MECÂNICA COM DEMARCADORA AUTOPROPELIDA - ESPESSURA DE 0,10 MM | D39: 102512 | E39: M | F39: 9500 | G39: =VLOOKUP(A39,CPU!$A$1:$N$4739,9) -> 5.84 | H39: =VLOOKUP(A39,CPU!$A$1:$N$4739,10) -> 7.22 | I39: 68590
A40: F | B40: 6 | C40: FORNECIMENTOS - MATERIAL ASFÁLTICO (BDI DIFERENCIADO) | I40: =SUM(I41:I43) -> 1582401.68
A41: 23 | B41: 6.1 | C41: AQUISIÇÃO DE EMULSÃO ASFÁLTICA PARA IMPRIMAÇÃO (EAI) - EXCLUSIVE TRANSPORTE | D41: CPU.7 | E41: T | F41: 30 | G41: =VLOOKUP(A41,CPU!$A$1:$N$4739,9) -> 2689.76 | H41: =VLOOKUP(A41,CPU!$A$1:$N$4739,10) -> 3093.22 | I41: =ROUND(F41*H41,2) -> 92796.6
A42: 24 | B42: 6.2 | C42: AQUISIÇÃO DE EMULSAO ASFALTICA CATIONICA RR-1C - EXCLUSIVE TRANSPORTE | D42: CPU.8 | E42: T | F42: 9 | G42: =VLOOKUP(A42,CPU!$A$1:$N$4739,9) -> 2706.7 | H42: =VLOOKUP(A42,CPU!$A$1:$N$4739,10) -> 3112.71 | I42: =ROUND(F42*H42,2) -> 28014.39
A43: 25 | B43: 6.3 | C43: AQUISIÇÃO DE CONCRETO BETUMINOSO USINADO A QUENTE (CBUQ) PARA PAVIMENTACAO ASFALTICA, PADRAO DNIT, FAIXA C, COM CAP 50/70 - EXCLUSIVE TRANSPORTE | D43: CPU.9 | E43: T | F43: 2075.00311 | G43: =VLOOKUP(A43,CPU!$A$1:$N$4739,9) -> 612.5 | H43: =VLOOKUP(A43,CPU!$A$1:$N$4739,10) -> 704.38 | I43: =ROUND(F43*H43,2) -> 1461590.69
B44: TOTAL GERAL DA OBRA COM BDI | I44: =SUM(I9,I15,I24,I32,I40,I28) -> 3236866.33

Sheet CPU
A1: 1 | B1: CODEVASF | E1: COMPOSIÇÃO DE PREÇO UNITÁRIO | I1: =H11 -> 8735.64 | J1: =H13 -> 10792.88 | K1: BDI CALCULADO: | M1: =ORÇAMENTO!I6 -> 0.2355
B2: OBRA: | C2: =ORÇAMENTO!C5 -> PAVIMENTAÇÃO ASFÁLTICA EM CBUQ – ITEM 1 – DIVERSOS LOGRADOUROS - NINHEIRA/MG (SEDE MUNICIPAL) | G2: DATA: | H2: =ORÇAMENTO!C6 -> SETEMBRO / 2023 | K2: BDI DIFERENCIADO: | M2: ='BDI FORN'!D31/100 -> 0.15
B3: SERVIÇO: | C3: =VLOOKUP(A1,ORÇAMENTO!A10:I33,3) -> MOBILIZAÇÃO E DESMOBILIZAÇÃO | E3: Referência: | F3: =VLOOKUP(A1,ORÇAMENTO!$A$10:$I$33,4) -> CPU.1 | G3: UNIDADE: | H3: =VLOOKUP(A1,ORÇAMENTO!A10:I33,5) -> GL
B5: TIPO ITEM | C5: CODIGO ITEM | D5: DESCRIÇÃO ITEM | E5: UNIDADE ITEM | F5: COEFICIENTE | G5: PRECO UNITARIO | H5: CUSTO TOTAL
B6: COMPOSICAO | C6: 89876 | D6: CAMINHÃO BASCULANTE 14 M3, COM CAVALO MECÂNICO DE CAPACIDADE MÁXIMA DE TRAÇÃO COMBINADO DE 36000 KG, POTÊNCIA 286 CV, INCLUSIVE SEMIREBOQUE COM CAÇAMBA METÁLICA | E6: CHP DIURNO. | F6: 8 | G6: 316.13 | H6: =ROUNDDOWN(F6*G6,2) -> 2529.04
B7: COMPOSICAO | C7: 89877 | D7: CAMINHÃO BASCULANTE 14 M3, COM CAVALO MECÂNICO DE CAPACIDADE MÁXIMA DE TRAÇÃO COMBINADO DE 36000 KG, POTÊNCIA 286 CV, INCLUSIVE SEMIREBOQUE COM CAÇAMBA METÁLICA | E7: CHI DIURNO. | F7: 8 | G7: 89.75 | H7: =ROUNDDOWN(F7*G7,2) -> 718
B8: COMPOSICAO | C8: 5914640 | D8: TRANSPORTE COM CAVALO MECÂNICO COM SEMIRREBOQUE COM CAPACIDADE DE 30 T - RODOVIA PAVIMENTADA | E8: T.KM | F8: 8918 | G8: 0.58 | H8: =ROUNDDOWN(F8*G8,2) -> 5172.44
B9: COMPOSIÇÃO | C9: 88316 | D9: SERVENTE COM ENCARGOS COMPLEMENTARES | E9: H | F9: 16 | G9: 19.76 | H9: =ROUNDDOWN(F9*G9,2) -> 316.16
B10: PRODUÇÃO DA EQUIPE | E10: 1 | F10: CUSTO | H10: =SUM(H6:H9) -> 8735.64
B11: TOTAL | H11: =H10/E10 -> 8735.64 | I11: OK
B12: BDI % | H12: =1+$M$1 -> 1.2355
B13: TOTAL DO SERVIÇO - R$ | H13: =ROUND(H11*H12,2) -> 10792.88
A15: 2 | B15: CODEVASF | E15: COMPOSIÇÃO DE PREÇO UNITÁRIO | I15: =H30 -> 113396.28 | J15: =H32 -> 140101.1
B16: OBRA: | C16: =$C$2 -> PAVIMENTAÇÃO ASFÁLTICA EM CBUQ – ITEM 1 – DIVERSOS LOGRADOUROS - NINHEIRA/MG (SEDE MUNICIPAL) | G16: DATA: | H16: =$H$2 -> SETEMBRO / 2023
B17: SERVIÇO: | C17: =VLOOKUP(A15,ORÇAMENTO!$A$10:$I$33,3) -> ADMINISTRAÇÃO LOCAL | E17: SINAPI | F17: =VLOOKUP(A15,ORÇAMENTO!$A$10:$I$33,4) -> CPU.2 | G17: UNIDADE: | H17: =VLOOKUP(A15,ORÇAMENTO!$A$10:$I$33,5) -> GL
B19: TIPO ITEM | C19: CODIGO ITEM | D19: DESCRIÇÃO ITEM | E19: UNIDADE ITEM | F19: COEFICIENTE | G19: PRECO UNITARIO | H19: CUSTO TOTAL
B20: INSUMO | C20: 14250 | D20: ENERGIA ELÉTRICA | E20: kwh | F20: 60 | G20: 0.94 | H20: =ROUNDDOWN(F20*G20,2) -> 56.4
B21: INSUMO | C21: 44480 | D21: TARIFA "A" - ÁGUA/ESGOTO | E21: m³ | F21: 6 | G21: 17.78 | H21: 106.68
B22: COTAÇÃO | C22: MERC. | D22: TELEFONE (PLANO CONTROLE) | E22: UNID | F22: 2 | G22: 59.9 | H22: 119.8
B23: INSUMO | C23: ED-50155 SEINFRA | D23: BANHEIRO QUÍMICO 110 X 120 X 230 CM COM MANUTENÇÃO (CONSIDERANDO OBRAS SIMULTÂNEAS) | E23: MÊS | F23: 1 | G23: 820 | H23: 820
B24: COMPOSICAO | C24: 90777 | D24: Engenheiro Civil Júnior com encargos complementares | E24: H | F24: 55 | G24: 114.12 | H24: 6276.6
B25: COMPOSICAO | C25: 90776 | D25: Encarregado Geral com encargos complementares | E25: H | F25: 110 | G25: 57.73 | H25: 6350.3
B26: COMPOSICAO | C26: 88321 | D26: Tecnico de Laboratório com encargos complementares | E26: H | F26: 45 | G26: 45.45 | H26: 2045.25
B27: COMPOSICAO | C27: 100309 | D27: Tecnico em Segurança do Trabalho com encargos complementares | E27: H | F27: 45 | G27: 45.71 | H27: =ROUNDDOWN(F27*G27,2) -> 2056.95
B28: COMPOSICAO | C28: 90772 | D28: Auxiliar de escritório com encargos complementares | E28: H | F28: 45 | G28: 23.72 | H28: 1067.4
B29: PRODUÇÃO DA EQUIPE | E29: =1/6 -> 0.1666666667 | F29: CUSTO | H29: =SUM(H20:H28) -> 18899.38
B30: TOTAL | H30: =ROUND(H29/E29,2) -> 113396.28 | I30: OK
B31: BDI % | H31: =1+$M$1 -> 1.2355
B32: TOTAL DO SERVIÇO - R$ | H32: =ROUND(H30*H31,2) -> 140101.1
A34: =A15+1 -> 3 | B34: CODEVASF | E34: COMPOSIÇÃO DE PREÇO UNITÁRIO | I34: =H44 -> 13831.5 | J34: =H46 -> 17088.82
B35: OBRA: | C35: =$C$2 -> PAVIMENTAÇÃO ASFÁLTICA EM CBUQ – ITEM 1 – DIVERSOS LOGRADOUROS - NINHEIRA/MG (SEDE MUNICIPAL) | G35: DATA: | H35: =$H$2 -> SETEMBRO / 2023
B36: SERVIÇO: | C36: =VLOOKUP(A34,ORÇAMENTO!$A$10:$I$33,3) -> CANTEIRO DE OBRAS | E36: SINAPI | F36: =VLOOKUP(A34,ORÇAMENTO!$A$10:$I$33,4) -> CPU.3 | G36: UNIDADE: | H36: =VLOOKUP(A34,ORÇAMENTO!$A$10:$I$33,5) -> GL
B38: TIPO ITEM | C38: CODIGO ITEM | D38: DESCRIÇÃO ITEM | E38: UNIDADE ITEM | F38: COEFICIENTE | G38: PRECO UNITARIO | H38: CUSTO TOTAL
B39: INSUMO | C39: 10775 | D39: ALUGUEL DE IMÓVEL OU CONTEINER QUE ATENDA AOS REQUISITOS MÍNIMOS PARA INSTALAÇÃO DO CANTEIRO DE OBRAS | E39: MÊS | F39: 6 | G39: 975 | H39: =ROUNDDOWN(F39*G39,2) -> 5850
B40: INSUMO | C40: 10779 | D40: LOCACAO DE CONTAINER 2,30 X 4,30 M, ALT. 2,50 M, P/ SANITARIO, C/ 5 BACIAS, 1 LAVATORIO E 4 MICTORIOS | E40: MÊS | F40: 6 | G40: 1218.75 | H40: =ROUNDDOWN(F40*G40,2) -> 7312.5
B41: INSUMO | C41: 37525 | D41: TELA PLASTICA TECIDA LISTRADA BRANCA E LARANJA, TIPO GUARDA CORPO, EM POLIETILENO MONOFILADO, ROLO 1,20 X 50 M (L X C) | E41: M | F41: 100 | G41: 3.69 | H41: =ROUNDDOWN(F41*G41,2) -> 369
B42: COMPOSICAO | C42: - | D42: PLACA DE SINALIZAÇÃO - "PERIGO - OBRAS A FRENTE" - FORNECIMENTO E MOVIMENTAÇÃO | E42: UNID. | F42: 12 | G42: 25 | H42: =ROUNDDOWN(F42*G42,2) -> 300
B43: PRODUÇÃO DA EQUIPE | E43: 1 | F43: CUSTO | H43: =SUM(H39:H42) -> 13831.5
B44: TOTAL | H44: =H43/E43 -> 13831.5 | I44: OK
B45: BDI % | H45: =1+$M$1 -> 1.2355
B46: TOTAL DO SERVIÇO - R$ | H46: =ROUND(H44*H45,2) -> 17088.82
A48: =A34+1 -> 4 | B48: CODEVASF | E48: COMPOSIÇÃO DE PREÇO UNITÁRIO | I48: =H62 -> 340.5 | J48: =H64 -> 420.69
B49: OBRA: | C49: =$C$2 -> PAVIMENTAÇÃO ASFÁLTICA EM CBUQ – ITEM 1 – DIVERSOS LOGRADOUROS - NINHEIRA/MG (SEDE MUNICIPAL) | G49: DATA: | H49: =$H$2 -> SETEMBRO / 2023
B50: SERVIÇO: | C50: =VLOOKUP(A48,ORÇAMENTO!$A$10:$I$33,3) -> PLACA DE OBRA EM CHAPA DE AÇO GALVANIZADO | E50: SINAPI | F50: =VLOOKUP(A48,ORÇAMENTO!$A$10:$I$33,4) -> 103689 | G50: UNIDADE: | H50: =VLOOKUP(A48,ORÇAMENTO!$A$10:$I$33,5) -> M2
B52: TIPO ITEM | C52: CODIGO ITEM | D52: DESCRIÇÃO ITEM | E52: UNIDADE ITEM | F52: COEFICIENTE | G52: PRECO UNITARIO | H52: CUSTO TOTAL
B53: INSUMO | C53: 4509 | D53: SARRAFO *2,5 X 10* CM EM PINUS, MISTA OU EQUIVALENTE DA REGIAO - BRUTA | E53: M | F53: 3,2083000 | G53: 4,41 | H53: =ROUNDDOWN(F53*G53,2) -> 14.14
B54: INSUMO | C54: 4813 | D54: PLACA DE OBRA (PARA CONSTRUCAO CIVIL) EM CHAPA GALVANIZADA *N. 22*, ADESIVADA, DE *2,4 X 1,2* M (SEM POSTES PARA FIXACAO) | E54: M2 | F54: 1,0000000 | G54: 250,00 | H54: 250
B55: INSUMO | C55: 5065 | D55: PREGO DE ACO POLIDO COM CABECA 10 X 10 | E55: KG | F55: 0,0113000 | G55: 36,57 | H55: 0.41
B56: INSUMO | C56: 5069 | D56: PREGO DE ACO POLIDO COM CABECA 17 X 27 | E56: KG | F56: 0,0132000 | G56: 19,59 | H56: 0.25
B57: COMPOSICAO | C57: 88262 | D57: CARPINTEIRO DE FORMAS COM ENCARGOS COMPLEMENTARES | E57: H | F57: 0,3729000 | G57: 27,05 | H57: 10.08
B58: COMPOSICAO | C58: 88316 | D58: SERVENTE COM ENCARGOS COMPLEMENTARES | E58: H | F58: 1,1186000 | G58: 19,76 | H58: 22.1
B59: COMPOSICAO | C59: 4115 | D59: MADEIRA ROLICA TRATADA, D = 12 A 15 CM, H = 3,00 M, EM EUCALIPTO OU EQUIVALENTE | E59: M | F59: 2 | G59: 21.76 | H59: 43.52
H60: 0
B61: PRODUÇÃO DA EQUIPE | E61: 1 | F61: CUSTO | H61: =SUM(H53:H60) -> 340.5
B62: TOTAL | H62: =H61/E61 -> 340.5 | I62: OK
B63: BDI % | H63: =1+$M$1 -> 1.2355
B64: TOTAL DO SERVIÇO - R$ | H64: =ROUND(H62*H63,2) -> 420.69
A66: =A48+1 -> 5 | B66: CODEVASF | E66: COMPOSIÇÃO DE PREÇO UNITÁRIO | I66: =H78 -> 0.33 | J66: =H80 -> 0.41
B67: OBRA: | C67: =$C$2 -> PAVIMENTAÇÃO ASFÁLTICA EM CBUQ – ITEM 1 – DIVERSOS LOGRADOUROS - NINHEIRA/MG (SEDE MUNICIPAL) | G67: DATA: | H67: =$H$2 -> SETEMBRO / 2023
B68: SERVIÇO: | C68: =VLOOKUP(A66,ORÇAMENTO!$A$10:$I$33,3) -> SERVIÇOS TOPOGRÁFICOS PARA PAVIMENTAÇÃO, INCLUSIVE NOTA DE SERVIÇO, ACOMPANHAMENTO E GREIDE | E68: SINAPI | F68: =VLOOKUP(A66,ORÇAMENTO!$A$10:$I$33,4) -> 78472 | G68: UNIDADE: | H68: =VLOOKUP(A66,ORÇAMENTO!$A$10:$I$33,5) -> M2
B70: TIPO ITEM | C70: CODIGO ITEM | D70: DESCRIÇÃO ITEM | E70: UNIDADE ITEM | F70: COEFICIENTE | G70: PRECO UNITARIO | H70: CUSTO TOTAL
B71: COMPOSICAO | C71: 88253 | D71: AUXILIAR DE TOPÓGRAFO COM ENCARGOS COMPLEMENTARES | E71: H | F71: 0.0025 | G71: 21.57 | H71: =ROUNDDOWN(F71*G71,2) -> 0.05
B72: COMPOSICAO | C72: 88288 | D72: NIVELADOR COM ENCARGOS COMPLEMENTARES | E72: H | F72: 0.0025 | G72: 26.99 | H72: 0.06
B73: COMPOSICAO | C73: 88316 | D73: SERVENTE COM ENCARGOS COMPLEMENTARES | E73: H | F73: 0.0075 | G73: 19.76 | H73: 0.14
B74: COMPOSICAO | C74: 88597 | D74: DESENHISTA DETALHISTA COM ENCARGOS COMPLEMENTARES | E74: H | F74: 0.002 | G74: 29.72 | H74: 0.05
B75: COMPOSICAO | C75: 92145 | D75: CAMINHONETE CABINE SIMPLES COM MOTOR 1.6 FLEX, CÂMBIO MANUAL, POTÊNCIA 101/104 CV, 2 PORTAS | E75: CHP | F75: 0.0005 | G75: 74.75 | H75: 0.03
H76: 0
B77: PRODUÇÃO DA EQUIPE | E77: 1 | F77: CUSTO | H77: =SUM(H71:H76) -> 0.33
B78: TOTAL | H78: =H77/E77 -> 0.33 | I78: OK
B79: BDI % | H79: =1+$M$1 -> 1.2355
B80: TOTAL DO SERVIÇO - R$ | H80: =ROUND(H78*H79,2) -> 0.41
A82: =A66+1 -> 6 | B82: CODEVASF | E82: COMPOSIÇÃO DE PREÇO UNITÁRIO | I82: =H91 -> 2.2 | J82: =H93 -> 2.72
B83: OBRA: | C83: =$C$2 -> PAVIMENTAÇÃO ASFÁLTICA EM CBUQ – ITEM 1 – DIVERSOS LOGRADOUROS - NINHEIRA/MG (SEDE MUNICIPAL) | G83: DATA: | H83: =$H$2 -> SETEMBRO / 2023
B84: SERVIÇO: | C84: =VLOOKUP(A82,ORÇAMENTO!$A$10:$I$33,3) -> ESCAVAÇÃO HORIZONTAL EM SOLO DE 1A CATEGORIA | E84: SINAPI | F84: =VLOOKUP(A82,ORÇAMENTO!$A$10:$I$33,4) -> 101116 | G84: UNIDADE: | H84: =VLOOKUP(A82,ORÇAMENTO!$A$10:$I$33,5) -> M3
B86: TIPO ITEM | C86: CODIGO ITEM | D86: DESCRIÇÃO ITEM | E86: UNIDADE ITEM | F86: COEFICIENTE | G86: PRECO UNITARIO | H86: CUSTO TOTAL
B87: COMPOSICAO | C87: 5847 | D87: TRATOR DE ESTEIRAS, POTÊNCIA 170 HP, PESO OPERACIONAL 19 T, CAÇAMBA 5,2 M3 | E87: CHP | F87: 0,0048000 | G87: 253,93 | H87: =ROUNDDOWN(F87*G87,2) -> 1.21
B88: COMPOSICAO | C88: 5849 | D88: TRATOR DE ESTEIRAS, POTÊNCIA 170 HP, PESO OPERACIONAL 19 T, CAÇAMBA 5,2 M3 | E88: CHI | F88: 0,0082000 | G88: 90,40 | H88: =ROUNDDOWN(F88*G88,2) -> 0.74
B89: COMPOSICAO | C89: 88316 | D89: SERVENTE COM ENCARGOS COMPLEMENTARES | E89: H | F89: 0,0131000 | G89: 19,76 | H89: =ROUNDDOWN(F89*G89,2) -> 0.25
B90: PRODUÇÃO DA EQUIPE | E90: 1 | F90: CUSTO | H90: =SUM(H87:H89) -> 2.2
B91: TOTAL | H91: =H90/E90 -> 2.2 | I91: OK
B92: BDI % | H92: =1+$M$1 -> 1.2355
B93: TOTAL DO SERVIÇO - R$ | H93: =ROUND(H91*H92,2) -> 2.72
A95: 7 | B95: CODEVASF | E95: COMPOSIÇÃO DE PREÇO UNITÁRIO | I95: =H105 -> 8.71 | J95: =H107 -> 10.76
B96: OBRA: | C96: =$C$2 -> PAVIMENTAÇÃO ASFÁLTICA EM CBUQ – ITEM 1 – DIVERSOS LOGRADOUROS - NINHEIRA/MG (SEDE MUNICIPAL) | G96: DATA: | H96: =$H$2 -> SETEMBRO / 2023
B97: SERVIÇO: | C97: =VLOOKUP(A95,ORÇAMENTO!$A$10:$I$33,3) -> CARGA, MANOBRA E DESCARGA DE SOLOS E MATERIAIS GRANULARES EM CAMINHÃO BASCULANTE | E97: SINAPI | F97: =VLOOKUP(A95,ORÇAMENTO!$A$10:$I$33,4) -> 100976 | G97: UNIDADE: | H97: =VLOOKUP(A95,ORÇAMENTO!$A$10:$I$33,5) -> M3
B99: TIPO ITEM | C99: CODIGO ITEM | D99: DESCRIÇÃO ITEM | E99: UNIDADE ITEM | F99: COEFICIENTE | G99: PRECO UNITARIO | H99: CUSTO TOTAL
B100: COMPOSICAO | C100: 5940 | D100: PÁ CARREGADEIRA SOBRE RODAS, POTÊNCIA LÍQUIDA 128 HP, CAPACIDADE DA CAÇAMBA 1,7 A 2,8 M3, PESO OPERACIONAL 11632 KG | E100: CHP | F100: 0,0083000 | G100: 217,72 | H100: =ROUNDDOWN(F100*G100,2) -> 1.8
B101: COMPOSICAO | C101: 5942 | D101: PÁ CARREGADEIRA SOBRE RODAS, POTÊNCIA LÍQUIDA 128 HP, CAPACIDADE DA CAÇAMBA 1,7 A 2,8 M3, PESO OPERACIONAL 11632 KG | E101: CHI | F101: 0,0074000 | G101: 95,85 | H101: =ROUNDDOWN(F101*G101,2) -> 0.7
B102: COMPOSICAO | C102: 89883 | D102: CAMINHÃO BASCULANTE 18 M3, COM CAVALO MECÂNICO DE CAPACIDADE MÁXIMA DE TRAÇÃO COMBINADO DE 45000 KG, POTÊNCIA 330 CV, INCLUSIVE SEMIREBOQUE COM CAÇAMBA METÁLICA | E102: CHP | F102: 0,0153000 | G102: 348,45 | H102: =ROUNDDOWN(F102*G102,2) -> 5.33
B103: COMPOSICAO | C103: 89884 | D103: CAMINHÃO BASCULANTE 18 M3, COM CAVALO MECÂNICO DE CAPACIDADE MÁXIMA DE TRAÇÃO COMBINADO DE 45000 KG, POTÊNCIA 330 CV, INCLUSIVE SEMIREBOQUE COM CAÇAMBA METÁLICA | E103: CHI | F103: 0,0095000 | G103: 93,65 | H103: =ROUNDDOWN(F103*G103,2) -> 0.88
B104: PRODUÇÃO DA EQUIPE | E104: 1 | F104: CUSTO | H104: =SUM(H100:H103) -> 8.71
B105: TOTAL | H105: =H104/E104 -> 8.71 | I105: OK
B106: BDI % | H106: =1+$M$1 -> 1.2355
B107: TOTAL DO SERVIÇO - R$ | H107: =ROUND(H105*H106,2) -> 10.76
A109: 8 | B109: CODEVASF | E109: COMPOSIÇÃO DE PREÇO UNITÁRIO | I109: =H123 -> 2.57 | J109: =H125 -> 3.18
B110: OBRA: | C110: =$C$2 -> PAVIMENTAÇÃO ASFÁLTICA EM CBUQ – ITEM 1 – DIVERSOS LOGRADOUROS - NINHEIRA/MG (SEDE MUNICIPAL) | G110: DATA: | H110: =$H$2 -> SETEMBRO / 2023
B111: SERVIÇO: | C111: =VLOOKUP(A109,ORÇAMENTO!$A$10:$I$33,3) -> REGULARIZAÇÃO E COMPACTAÇÃO DO SUBLEITO | E111: SICRO | F111: =VLOOKUP(A109,ORÇAMENTO!$A$10:$I$33,4) -> 100576 | G111: UNIDADE: | H111: M2
B113: TIPO ITEM | C113: CODIGO ITEM | D113: DESCRIÇÃO ITEM | E113: UNIDADE ITEM | F113: COEFICIENTE | G113: PRECO UNITARIO | H113: CUSTO TOTAL
B114: COMPOSICAO | C114: 5901 | D114: CAMINHÃO PIPA 10.000 L TRUCADO, PESO BRUTO TOTAL 23.000 KG, CARGA ÚTIL MÁXIMA 15.935 KG, DISTÂNCIA ENTRE EIXOS 4,8 M, POTÊNCIA 230 CV, INCLUSIVE TANQUE DE AÇO PARA TRANSPORTE DE ÁGUA | E114: CHP | F114: 0,0010000 | G114: 294,94 | H114: =ROUNDDOWN(F114*G114,2) -> 0.29
B115: COMPOSICAO | C115: 5903 | D115: CAMINHÃO PIPA 10.000 L TRUCADO, PESO BRUTO TOTAL 23.000 KG, CARGA ÚTIL MÁXIMA 15.935 KG, DISTÂNCIA ENTRE EIXOS 4,8 M, POTÊNCIA 230 CV, INCLUSIVE TANQUE DE AÇO PARA TRANSPORTE DE ÁGUA | E115: CHI | F115: 0,0070000 | G115: 72,55 | H115: 0.5
B116: COMPOSICAO | C116: 5932 | D116: MOTONIVELADORA POTÊNCIA BÁSICA LÍQUIDA (PRIMEIRA MARCHA) 125 HP, PESO BRUTO 13032 KG, LARGURA DA LÂMINA DE 3,7 M | E116: CHP | F116: 0,0001000 | G116: 262,71 | H116: 0.02
B117: COMPOSICAO | C117: 5934 | D117: MOTONIVELADORA POTÊNCIA BÁSICA LÍQUIDA (PRIMEIRA MARCHA) 125 HP, PESO BRUTO 13032 KG, LARGURA DA LÂMINA DE 3,7 M | E117: CHI | F117: 0,0080000 | G117: 109,40 | H117: 0.87
B118: COMPOSICAO | C118: 88316 | D118: SERVENTE COM ENCARGOS COMPLEMENTARES | E118: H | F118: 0,0020000 | G118: 163,19 | H118: 0.32
B119: COMPOSICAO | C119: 96463 | D119: ROLO COMPACTADOR DE PNEUS, ESTATICO, PRESSAO VARIAVEL, POTENCIA 110 HP, PESO SEM/COM LASTRO 10,8/27 T, LARGURA DE ROLAGEM 2,30 M | E119: CHP | F119: 0,0080000 | G119: 19,76 | H119: 0.15
B120: COMPOSICAO | C120: 96464 | D120: ROLO COMPACTADOR DE PNEUS, ESTATICO, PRESSAO VARIAVEL, POTENCIA 110 HP, PESO SEM/COM LASTRO 10,8/27 T, LARGURA DE ROLAGEM 2,30 M | E120: CHI | F120: 0,0060000 | G120: 71,18 | H120: 0.42
B122: PRODUÇÃO DA EQUIPE | E122: 1 | F122: CUSTO | H122: =SUM(H114:H121) -> 2.57
B123: TOTAL | H123: =H122/E122 -> 2.57 | I123: OK
B124: BDI % | H124: =1+$M$1 -> 1.2355
B125: TOTAL DO SERVIÇO - R$ | H125: =ROUND(H123*H124,2) -> 3.18
A127: 9 | B127: CODEVASF | E127: COMPOSIÇÃO DE PREÇO UNITÁRIO | I127: =H142 -> 12.47 | J127: =H144 -> 15.41
B128: OBRA: | C128: =$C$2 -> PAVIMENTAÇÃO ASFÁLTICA EM CBUQ – ITEM 1 – DIVERSOS LOGRADOUROS - NINHEIRA/MG (SEDE MUNICIPAL) | G128: DATA: | H128: =$H$2 -> SETEMBRO / 2023
B129: SERVIÇO: | C129: =VLOOKUP(A127,ORÇAMENTO!$A$10:$I$33,3) -> EXECUÇÃO E COMPACTAÇÃO DE BASE E OU SUB BASE PARA PAVIMENTAÇÃO EM CASCALHO - EXCLUSIVE SOLO, ESCAVAÇÃO, CARGA E TRANSPORTE. | E129: SINAPI | F129: =VLOOKUP(A127,ORÇAMENTO!$A$10:$I$33,4) -> 96388 | G129: UNIDADE: | H129: =VLOOKUP(A127,ORÇAMENTO!$A$10:$I$33,5) -> M3
B131: TIPO ITEM | C131: CODIGO ITEM | D131: DESCRIÇÃO ITEM | E131: UNIDADE ITEM | F131: COEFICIENTE | G131: PRECO UNITARIO | H131: CUSTO TOTAL
B132: COMPOSICAO | C132: 5684 | D132: ROLO COMPACTADOR VIBRATÓRIO DE UM CILINDRO AÇO LISO, POTÊNCIA 80 HP, PESO OPERACIONAL MÁXIMO 8,1 T, IMPACTO DINÂMICO 16,15 / 9,5 T, LARGURA DE TRABALHO 1,68 M | E132: CHP | F132: 0,0030000 | G132: 159,98 | H132: =ROUNDDOWN(F132*G132,2) -> 0.47
B133: COMPOSICAO | C133: 5685 | D133: ROLO COMPACTADOR VIBRATÓRIO DE UM CILINDRO AÇO LISO, POTÊNCIA 80 HP, PESO OPERACIONAL MÁXIMO 8,1 T, IMPACTO DINÂMICO 16,15 / 9,5 T, LARGURA DE TRABALHO 1,68 M | E133: CHI | F133: 0,0230000 | G133: 69,53 | H133: 1.59
B134: COMPOSICAO | C134: 5901 | D134: CAMINHÃO PIPA 10.000 L TRUCADO, PESO BRUTO TOTAL 23.000 KG, CARGA ÚTIL MÁXIMA 15.935 KG, DISTÂNCIA ENTRE EIXOS 4,8 M, POTÊNCIA 230 CV, INCLUSIVE TANQUE DE AÇO PARA TRANSPORTE DE ÁGUA | E134: CHP | F134: 0,0040000 | G134: 294,94 | H134: 1.17
B135: COMPOSICAO | C135: 5903 | D135: CAMINHÃO PIPA 10.000 L TRUCADO, PESO BRUTO TOTAL 23.000 KG, CARGA ÚTIL MÁXIMA 15.935 KG, DISTÂNCIA ENTRE EIXOS 4,8 M, POTÊNCIA 230 CV, INCLUSIVE TANQUE DE AÇO PARA TRANSPORTE DE ÁGUA | E135: CHI | F135: 0,0220000 | G135: 72,55 | H135: 1.59
B136: COMPOSICAO | C136: 5932 | D136: MOTONIVELADORA POTÊNCIA BÁSICA LÍQUIDA (PRIMEIRA MARCHA) 125 HP, PESO BRUTO 13032 KG, LARGURA DA LÂMINA DE 3,7 M | E136: CHP | F136: 0,0080000 | G136: 262,71 | H136: 2.1
B137: COMPOSICAO | C137: 5934 | D137: MOTONIVELADORA POTÊNCIA BÁSICA LÍQUIDA (PRIMEIRA MARCHA) 125 HP, PESO BRUTO 13032 KG, LARGURA DA LÂMINA DE 3,7 M | E137: CHI | F137: 0,0190000 | G137: 109,40 | H137: 2.07
B138: COMPOSICAO | C138: 88316 | D138: SERVENTE COM ENCARGOS COMPLEMENTARES | E138: H | F138: 0,0260000 | G138: 19,76 | H138: 0.51
B139: COMPOSICAO | C139: 96463 | D139: ROLO COMPACTADOR DE PNEUS, ESTATICO, PRESSAO VARIAVEL, POTENCIA 110 HP, PESO SEM/COM LASTRO 10,8/27 T, LARGURA DE ROLAGEM 2,30 M | E139: CHP | F139: 0,0040000 | G139: 218,21 | H139: 0.87
B140: COMPOSICAO | C140: 96464 | D140: ROLO COMPACTADOR DE PNEUS, ESTATICO, PRESSAO VARIAVEL, POTENCIA 110 HP, PESO SEM/COM LASTRO 10,8/27 T, LARGURA DE ROLAGEM 2,30 M | E140: CHI | F140: 0,0220000 | G140: 95,83 | H140: 2.1
B141: PRODUÇÃO DA EQUIPE | E141: 1 | F141: CUSTO | H141: =SUM(H132:H140) -> 12.47
B142: TOTAL | H142: =H141/E141 -> 12.47 | I142: OK
B143: BDI % | H143: =1+$M$1 -> 1.2355
B144: TOTAL DO SERVIÇO - R$ | H144: =ROUND(H142*H143,2) -> 15.41
A146: 10 | B146: CODEVASF | E146: COMPOSIÇÃO DE PREÇO UNITÁRIO | I146: =H161 -> 1.23 | J146: =H163 -> 1.52
B147: OBRA: | C147: =$C$2 -> PAVIMENTAÇÃO ASFÁLTICA EM CBUQ – ITEM 1 – DIVERSOS LOGRADOUROS - NINHEIRA/MG (SEDE MUNICIPAL) | G147: DATA: | H147: =$H$2 -> SETEMBRO / 2023
B148: SERVIÇO: | C148: =VLOOKUP(A146,ORÇAMENTO!$A$10:$I$33,3) -> IMPRIMAÇÃO COM EMULSÃO ASFÁLTICA DE IMPRIMAÇÃO (EAI) | E148: SINAPI | F148: =VLOOKUP(A146,ORÇAMENTO!$A$10:$I$33,4) -> 96401 | G148: UNIDADE: | H148: =VLOOKUP(A146,ORÇAMENTO!$A$10:$I$33,5) -> M2
B150: TIPO ITEM | C150: CODIGO ITEM | D150: DESCRIÇÃO ITEM | E150: UNIDADE ITEM | F150: COEFICIENTE | G150: PRECO UNITARIO | H150: CUSTO TOTAL
B151: COMPOSICAO | C151: 5839 | D151: VASSOURA MECÂNICA REBOCÁVEL COM ESCOVA CILÍNDRICA, LARGURA ÚTIL DE VARRIMENTO DE 2,44 M | E151: CHP | F151: 0,0020000 | G151: 10.3 | H151: =ROUNDDOWN(F151*G151,2) -> 0.02
B152: COMPOSICAO | C152: 5841 | D152: VASSOURA MECÂNICA REBOCÁVEL COM ESCOVA CILÍNDRICA, LARGURA ÚTIL DE VARRIMENTO DE 2,44 M | E152: CHI | F152: 0,0040000 | G152: 5.18 | H152: 0.02
B153: INSUMO | C153: ANP | D153: EMULSÃO ASFÁLTICA PARA IMPRIMAÇÃO - EAI (FORNECIMENTO COM BDI DIFERENCIADO) | E153: T | F153: =1.3/1000 -> 0.0013 | H153: 0
B154: COMPOSICAO | C154: 83362 | D154: ESPARGIDOR DE ASFALTO PRESSURIZADO, TANQUE 6 M3 COM ISOLAÇÃO TÉRMICA, AQUECIDO COM 2 MAÇARICOS, COM BARRA ESPARGIDORA 3,60 M, MONTADO SOBRE CAMINHÃO TOCO, PBT 14.300 KG, POTÊNCIA 185 CV | E154: CHP | F154: 0,0010000 | G154: 256.34 | H154: 0.25
B155: COMPOSICAO | C155: 88316 | D155: SERVENTE COM ENCARGOS COMPLEMENTARES | E155: H | F155: 0,0060000 | G155: 19.76 | H155: 0.11
B156: COMPOSICAO | C156: 89035 | D156: TRATOR DE PNEUS, POTÊNCIA 85 CV, TRAÇÃO 4X4, PESO COM LASTRO DE 4.675 KG | E156: CHP | F156: 0,0020000 | G156: 135.08 | H156: 0.27
B157: COMPOSICAO | C157: 89036 | D157: TRATOR DE PNEUS, POTÊNCIA 85 CV, TRAÇÃO 4X4, PESO COM LASTRO DE 4.675 KG | E157: CHI | F157: 0,0040000 | G157: 56.48 | H157: 0.22
B158: COMPOSICAO | C158: 91486 | D158: ESPARGIDOR DE ASFALTO PRESSURIZADO, TANQUE 6 M3 COM ISOLAÇÃO TÉRMICA, AQUECIDO COM 2 MAÇARICOS, COM BARRA ESPARGIDORA 3,60 M, MONTADO SOBRE CAMINHÃO TOCO, PBT 14.300 KG, POTÊNCIA 185 CV | E158: CHI | F158: 0,0050000 | G158: 68.43 | H158: 0.34
H159: 0
B160: PRODUÇÃO DA EQUIPE | E160: 1 | F160: CUSTO | H160: =SUM(H151:H159) -> 1.23
B161: TOTAL | H161: =H160/E160 -> 1.23 | I161: OK
B162: BDI % | H162: =1+$M$1 -> 1.2355
B163: TOTAL DO SERVIÇO - R$ | H163: =ROUND(H161*H162,2) -> 1.52
A165: 11 | B165: CODEVASF | E165: COMPOSIÇÃO DE PREÇO UNITÁRIO | I165: =H180 -> 1.01 | J165: =H182 -> 1.25
B166: OBRA: | C166: =$C$2 -> PAVIMENTAÇÃO ASFÁLTICA EM CBUQ – ITEM 1 – DIVERSOS LOGRADOUROS - NINHEIRA/MG (SEDE MUNICIPAL) | G166: DATA: | H166: =$H$2 -> SETEMBRO / 2023
B167: SERVIÇO: | C167: =VLOOKUP(A165,ORÇAMENTO!$A$10:$I$33,3) -> PINTURA DE LIGAÇÃO COM EMULSÃO ASFÁLTICA RR-1C | E167: SINAPI | F167: =VLOOKUP(A165,ORÇAMENTO!$A$10:$I$33,4) -> 96402 | G167: UNIDADE: | H167: M2
B169: TIPO ITEM | C169: CODIGO ITEM | D169: DESCRIÇÃO ITEM | E169: UNIDADE ITEM | F169: COEFICIENTE | G169: PRECO UNITARIO | H169: CUSTO TOTAL
B170: COMPOSICAO | C170: 5839 | D170: VASSOURA MECÂNICA REBOCÁVEL COM ESCOVA CILÍNDRICA, LARGURA ÚTIL DE VARRIMENTO DE 2,44 M | E170: CHP | F170: 0,0020000 | G170: 10.3 | H170: =ROUNDDOWN(F170*G170,2) -> 0.02
B171: COMPOSICAO | C171: 5841 | D171: VASSOURA MECÂNICA REBOCÁVEL COM ESCOVA CILÍNDRICA, LARGURA ÚTIL DE VARRIMENTO DE 2,44 M | E171: CHI | F171: 0,0040000 | G171: 5.18 | H171: 0.02
B172: INSUMO | C172: 41903 | D172: EMULSAO ASFALTICA CATIONICA RR-1C PARA USO EM PAVIMENTACAO ASFALTICA (FORNECIMENTO COM BDI DIFERENCIADO) | E172: KG | F172: 0,4500000 | H172: 0
B173: COMPOSICAO | C173: 83362 | D173: ESPARGIDOR DE ASFALTO PRESSURIZADO, TANQUE 6 M3 COM ISOLAÇÃO TÉRMICA, AQUECIDO COM 2 MAÇARICOS, COM BARRA ESPARGIDORA 3,60 M, MONTADO SOBRE CAMINHÃO TOCO, PBT 14.300 KG, POTÊNCIA 185 CV | E173: CHP | F173: 0,0004000 | G173: 256.34 | H173: 0.1
B174: COMPOSICAO | C174: 88316 | D174: SERVENTE COM ENCARGOS COMPLEMENTARES | E174: H | F174: 0,0055000 | G174: 19.76 | H174: 0.1
B175: COMPOSICAO | C175: 89035 | D175: TRATOR DE PNEUS, POTÊNCIA 85 CV, TRAÇÃO 4X4, PESO COM LASTRO DE 4.675 KG | E175: CHP | F175: 0,0017000 | G175: 135.08 | H175: 0.22
B176: COMPOSICAO | C176: 89036 | D176: TRATOR DE PNEUS, POTÊNCIA 85 CV, TRAÇÃO 4X4, PESO COM LASTRO DE 4.675 KG | E176: CHI | F176: 0,0038000 | G176: 56.48 | H176: 0.21
B177: COMPOSICAO | C177: 91486 | D177: ESPARGIDOR DE ASFALTO PRESSURIZADO, TANQUE 6 M3 COM ISOLAÇÃO TÉRMICA, AQUECIDO COM 2 MAÇARICOS, COM BARRA ESPARGIDORA 3,60 M, MONTADO SOBRE CAMINHÃO TOCO, PBT 14.300 KG, POTÊNCIA 185 CV | E177: CHI | F177: 0,0051000 | G177: 68.43 | H177: 0.34
H178: 0
B179: PRODUÇÃO DA EQUIPE | E179: 1 | F179: CUSTO | H179: =SUM(H170:H178) -> 1.01
B180: TOTAL | H180: =H179/E179 -> 1.01 | I180: OK
B181: BDI % | H181: =1+$M$1 -> 1.2355
B182: TOTAL DO SERVIÇO - R$ | H182: =ROUND(H180*H181,2) -> 1.25
A184: 12 | B184: CODEVASF | E184: COMPOSIÇÃO DE PREÇO UNITÁRIO | I184: =H202 -> 129.6 | J184: =H204 -> 160.12
B185: OBRA: | C185: =$C$2 -> PAVIMENTAÇÃO ASFÁLTICA EM CBUQ – ITEM 1 – DIVERSOS LOGRADOUROS - NINHEIRA/MG (SEDE MUNICIPAL) | G185: DATA: | H185: =$H$2 -> SETEMBRO / 2023
B186: SERVIÇO: | C186: =VLOOKUP(A184,ORÇAMENTO!$A$10:$I$33,3) -> EXECUÇÃO DE PAVIMENTO COM APLICAÇÃO DE CONCRETO ASFÁLTICO USINADO A QUENTE (CBUQ), CAMADA DE ROLAMENTO - EXCLUSIVE TRANSPORTE | E186: SINAPI | F186: =VLOOKUP(A184,ORÇAMENTO!$A$10:$I$33,4) -> 95995 | G186: UNIDADE: | H186: =VLOOKUP(A184,ORÇAMENTO!$A$10:$I$33,5) -> M3
B188: TIPO ITEM | C188: CODIGO ITEM | D188: DESCRIÇÃO ITEM | E188: UNIDADE ITEM | F188: COEFICIENTE | G188: PRECO UNITARIO | H188: CUSTO TOTAL
B189: INSUMO | C189: 1518 | D189: CONCRETO BETUMINOSO USINADO A QUENTE (CBUQ) PARA PAVIMENTACAO ASFALTICA, PADRAO DNIT, FAIXA C, COM CAP 50/70 - AQUISICAO POSTO USINA | E189: T | F189: 2,5548000 | H189: =ROUNDDOWN(F189*G189,2) -> 0
B190: COMPOSICAO | C190: 5835 | D190: VIBROACABADORA DE ASFALTO SOBRE ESTEIRAS, LARGURA DE PAVIMENTAÇÃO 1,90 M A 5,30 M, POTÊNCIA 105 HP CAPACIDADE 450 T/H | E190: CHP | F190: 0,0464000 | G190: 396,75 | H190: 18.4
B191: COMPOSICAO | C191: 5837 | D191: VIBROACABADORA DE ASFALTO SOBRE ESTEIRAS, LARGURA DE PAVIMENTAÇÃO 1,90 M A 5,30 M, POTÊNCIA 105 HP CAPACIDADE 450 T/H | E191: CHI | F191: 0,0949000 | G191: 165,12 | H191: 15.66
B192: COMPOSICAO | C192: 88314 | D192: RASTELEIRO COM ENCARGOS COMPLEMENTARES | E192: H | F192: 1,1301000 | G192: 26,52 | H192: 29.97
B193: COMPOSICAO | C193: 91386 | D193: CAMINHÃO BASCULANTE 10 M3, TRUCADO CABINE SIMPLES, PESO BRUTO TOTAL 23.000 KG, CARGA ÚTIL MÁXIMA 15.935 KG, DISTÂNCIA ENTRE EIXOS 4,80 M, POTÊNCIA 230 CV INCLUSIVE CAÇAMBA METÁLICA | E193: CHP | F193: 0,0464000 | G193: 252,13 | H193: 11.69
B194: COMPOSICAO | C194: 95631 | D194: ROLO COMPACTADOR VIBRATORIO TANDEM, ACO LISO, POTENCIA 125 HP, PESO SEM/COM LASTRO 10,20/11,65 T, LARGURA DE TRABALHO 1,73 M | E194: CHP | F194: 0,0805000 | G194: 228,02 | H194: 18.35
B195: COMPOSICAO | C195: 95632 | D195: ROLO COMPACTADOR VIBRATORIO TANDEM, ACO LISO, POTENCIA 125 HP, PESO SEM/COM LASTRO 10,20/11,65 T, LARGURA DE TRABALHO 1,73 M | E195: CHI | F195: 0,0607000 | G195: 89,32 | H195: 5.42
B196: COMPOSICAO | C196: 96155 | D196: TRATOR DE PNEUS COM POTÊNCIA DE 85 CV, TRAÇÃO 4X4, COM VASSOURA MECÂNICA ACOPLADA | E196: CHI | F196: 0,1071000 | G196: 61,42 | H196: 6.57
B197: COMPOSICAO | C197: 96157 | D197: TRATOR DE PNEUS COM POTÊNCIA DE 85 CV, TRAÇÃO 4X4, COM VASSOURA MECÂNICA ACOPLADA | E197: CHP | F197: 0,0341000 | G197: 144,29 | H197: 4.92
B198: COMPOSICAO | C198: 96463 | D198: ROLO COMPACTADOR DE PNEUS, ESTATICO, PRESSAO VARIAVEL, POTENCIA 110 HP, PESO SEM/COM LASTRO 10,8/27 T, LARGURA DE ROLAGEM 2,30 M | E198: CHP | F198: 0,0419000 | G198: 218,21 | H198: 9.14
B199: COMPOSICAO | C199: 96464 | D199: ROLO COMPACTADOR DE PNEUS, ESTATICO, PRESSAO VARIAVEL, POTENCIA 110 HP, PESO SEM/COM LASTRO 10,8/27 T, LARGURA DE ROLAGEM 2,30 M | E199: CHI | F199: 0,0990000 | G199: 95,83 | H199: 9.48
H200: 0
B201: PRODUÇÃO DA EQUIPE | E201: 1 | F201: CUSTO | H201: =SUM(H189:H200) -> 129.6
B202: TOTAL | H202: =H201/E201 -> 129.6 | I202: OK
B203: BDI % | H203: =1+$M$1 -> 1.2355
B204: TOTAL DO SERVIÇO - R$ | H204: =ROUND(H202*H203,2) -> 160.12
A206: 13 | B206: CODEVASF | E206: COMPOSIÇÃO DE PREÇO UNITÁRIO | I206: =H215 -> 1.24 | J206: =H217 -> 1.53202
B207: OBRA: | C207: =$C$2 -> PAVIMENTAÇÃO ASFÁLTICA EM CBUQ – ITEM 1 – DIVERSOS LOGRADOUROS - NINHEIRA/MG (SEDE MUNICIPAL) | G207: DATA: | H207: =$H$2 -> SETEMBRO / 2023
B208: SERVIÇO: | C208: =VLOOKUP(A206,ORÇAMENTO!$A$10:$I$33,3) -> TRANSPORTE COM CAMINHÃO BASCULANTE, EM VIA URBANA EM REVESTIMENTO PRIMÁRIO | E208: SINAPI | F208: =VLOOKUP(A206,ORÇAMENTO!$A$10:$I$33,4) -> 95426 | G208: UNIDADE: | H208: =VLOOKUP(A206,ORÇAMENTO!$A$10:$I$33,5) -> M3XKM
B210: TIPO ITEM | C210: CODIGO ITEM | D210: DESCRIÇÃO ITEM | E210: UNIDADE ITEM | F210: COEFICIENTE | G210: PRECO UNITARIO | H210: CUSTO TOTAL
B211: COMPOSICAO | C211: 89883a | D211: CAMINHÃO BASCULANTE 18 M3, COM CAVALO MECÂNICO DE CAPACIDADE MÁXIMA DE TRAÇÃO COMBINADO DE 45000 KG, POTÊNCIA 330 CV, INCLUSIVE SEMIREBOQUE COM CAÇAMBA METÁLICA | E211: CHP | F211: 0.003 | G211: 348,45 | H211: =ROUNDDOWN(F211*G211,2) -> 1.04
B212: COMPOSICAO | C212: 89884 | D212: CAMINHÃO BASCULANTE 18 M3, COM CAVALO MECÂNICO DE CAPACIDADE MÁXIMA DE TRAÇÃO COMBINADO DE 45000 KG, POTÊNCIA 330 CV, INCLUSIVE SEMIREBOQUE COM CAÇAMBA METÁLICA | E212: CHI | F212: 0,0022000 | G212: 93,65 | H212: 0.2
H213: =F213*G213 -> 0
B214: PRODUÇÃO DA EQUIPE | E214: 1 | F214: CUSTO | H214: =SUM(H211:H213) -> 1.24
B215: TOTAL | H215: =H214/E214 -> 1.24
B216: BDI % | H216: =1+$M$1 -> 1.2355
B217: TOTAL DO SERVIÇO - R$ | H217: =H215*H216 -> 1.53202
A219: 13.5 | B219: CODEVASF | E219: COMPOSIÇÃO DE PREÇO UNITÁRIO | I219: =H228 -> 0.73 | J219: =H230 -> 0.9
B220: OBRA: | C220: =$C$2 -> PAVIMENTAÇÃO ASFÁLTICA EM CBUQ – ITEM 1 – DIVERSOS LOGRADOUROS - NINHEIRA/MG (SEDE MUNICIPAL) | G220: DATA: | H220: =$H$2 -> SETEMBRO / 2023
B221: SERVIÇO: | C221: =VLOOKUP(A219,ORÇAMENTO!$A$10:$I$33,3) -> TRANSPORTE COM CAMINHÃO BASCULANTE, EM VIA URBANA PAVIMENTADA | E221: SINAPI | F221: =VLOOKUP(A219,ORÇAMENTO!$A$10:$I$33,4) -> 95427 | G221: UNIDADE: | H221: =VLOOKUP(A219,ORÇAMENTO!$A$10:$I$33,5) -> M3XKM
B223: TIPO ITEM | C223: CODIGO ITEM | D223: DESCRIÇÃO ITEM | E223: UNIDADE ITEM | F223: COEFICIENTE | G223: PRECO UNITARIO | H223: CUSTO TOTAL
B224: COMPOSICAO | C224: 89883 | D224: CAMINHÃO BASCULANTE 18 M3, COM CAVALO MECÂNICO DE CAPACIDADE MÁXIMA DE TRAÇÃO COMBINADO DE 45000 KG, POTÊNCIA 330 CV, INCLUSIVE SEMIREBOQUE COM CAÇAMBA METÁLICA | E224: CHP | F224: 0,0019000 | G224: 348.45 | H224: =ROUNDDOWN(F224*G224,2) -> 0.66
B225: COMPOSICAO | C225: 89884 | D225: CAMINHÃO BASCULANTE 18 M3, COM CAVALO MECÂNICO DE CAPACIDADE MÁXIMA DE TRAÇÃO COMBINADO DE 45000 KG, POTÊNCIA 330 CV, INCLUSIVE SEMIREBOQUE COM CAÇAMBA METÁLICA | E225: CHI | F225: 0,0008000 | G225: 93.65 | H225: =ROUNDDOWN(F225*G225,2) -> 0.07
H226: =ROUNDDOWN(F226*G226,2) -> 0
B227: PRODUÇÃO DA EQUIPE | E227: 1 | F227: CUSTO | H227: =SUM(H224:H226) -> 0.73
B228: TOTAL | H228: =H227/E227 -> 0.73 | I228: OK
... 180 more rows

Sheet BDI SERV
B1: DETALHAMENTO DO BDI - SERVIÇOS
B4: Item | C4: Descrição dos Serviços | D4: % | E4: %
D5: PV | E5: CD
B7: 1 | C7: ADMINISTRAÇÃO CENTRAL | E7: 4.01
B8: 1.1 | C8: ESCRITÓRIO CENTRAL
B9: 1.2 | C9: VIAGENS
B10: 1.3 | C10: OUTROS
B12: 2 | C12: IMPOSTOS E TAXAS | D12: =SUM(D13:D16) -> 7.65 | E12: =SUM(E13:E16) -> 9.57
B13: 2.1 | C13: ISS (*) | D13: =5*0.8 -> 4 | E13: =ROUND(D13*1.2515,2) -> 5.01
B14: 2.2 | C14: PIS | D14: 0.65 | E14: =ROUND(D14*1.2515,2) -> 0.81
B15: 2.3 | C15: Cofins | D15: 3 | E15: =ROUND(D15*1.2515,2) -> 3.75
B16: 2.4 | C16: CONTRIBUIÇÃO PREVIDENCIÁRIA SOBRE A RENDA BRUTA | D16: 0 | E16: =ROUND(D16*1.2515,2) -> 0
B18: 3 | C18: TAXA DE RISCO | E18: =SUM(E19:E22) -> 0.96
B19: 3.1 | C19: SEGURO | E19: 0.2
B20: 3.2 | C20: RISCO | E20: 0.56
B21: 3.3 | C21: GARANTIA | E21: 0.2
B23: 4 | C23: DESPESAS FINANCEIRAS | E23: 1.11
B25: 5 | C25: LUCRO | E25: 7.5
C27: BDI - CALCULADO | E27: =ROUND((((1+(E7+E18)/100)*(1+E23/100)*(1+E25/100)/(1-D12/100)-1)*100),2) -> 23.55
A29: BDI = ((1+((AC+S+R+G)/100))x(1+DF/100)x(1+L/100)/(1-I/100)-1)*100
B31: BDI (CALCULADO): | D31: =ROUND((((1+((E7+E18)/100))*(1+E23/100)*(1+E25/100))/(1-D12/100)-1)*100,2) -> 23.55 | E31: %
A33: (*) ISS CONFORME DECLARAÇAO FORNECIDA PELA PREFEITURA DE NINHEIRA Considerando redução de 20% na base de cálculo, relativo ao desconto dos materiais empregaddos na obra
A37: BDI EM CONFORMIDADE COM OS ACÓRDÃOS Nº 2369/2011 e ACÓRDÃO Nº 2.622/2013 - TCU - PLENÁRIO

Sheet BDI FORN
B1: DETALHAMENTO DO BDI - FORNECIMENTO (MATERIAL ASFÁLTICO)
B4: Item | C4: Descrição dos Serviços | D4: % | E4: %
D5: PV | E5: CD
B7: 1 | C7: ADMINISTRAÇÃO CENTRAL | E7: 3.72
B8: 1.1 | C8: ESCRITÓRIO CENTRAL
B9: 1.2 | C9: VIAGENS
B10: 1.3 | C10: OUTROS
B12: 2 | C12: IMPOSTOS E TAXAS | D12: =SUM(D13:D16) -> 3.65 | E12: =SUM(E13:E16) -> 4.56
B13: 2.1 | C13: ISS (*) | E13: =ROUND(D13*1.2515,2) -> 0
B14: 2.2 | C14: PIS | D14: 0.65 | E14: =ROUND(D14*1.2515,2) -> 0.81
B15: 2.3 | C15: Cofins | D15: 3 | E15: =ROUND(D15*1.2515,2) -> 3.75
B16: 2.4 | C16: CONTRIBUIÇÃO PREVIDENCIÁRIA SOBRE A RENDA BRUTA | D16: 0 | E16: =ROUND(D16*1.2515,2) -> 0
B18: 3 | C18: TAXA DE RISCO | E18: =SUM(E19:E22) -> 0.82
B19: 3.1 | C19: SEGURO | E19: 0.16
B20: 3.2 | C20: RISCO | E20: 0.5
B21: 3.3 | C21: GARANTIA | E21: 0.16
B23: 4 | C23: DESPESAS FINANCEIRAS | E23: 0.94
B25: 5 | C25: LUCRO | E25: 5
C27: BDI - CALCULADO | E27: =ROUND((((1+(E7+E18)/100)*(1+E23/100)*(1+E25/100)/(1-D12/100)-1)*100),2) -> 15
A29: BDI = ((1+((AC+S+R+G)/100))x(1+DF/100)x(1+L/100)/(1-I/100)-1)*100
B31: BDI (CALCULADO): | D31: =ROUND((((1+((E7+E18)/100))*(1+E23/100)*(1+E25/100))/(1-D12/100)-1)*100,2) -> 15 | E31: %
A37: BDI EM CONFORMIDADE COM OS ACÓRDÃOS Nº 2369/2011 e ACÓRDÃO Nº 2.622/2013 - TCU - PLENÁRIO

Sheet CRONOGRAMA
B1: CRONOGRAMA FÍSICO-FINANCEIRO
B2: OBRA: | C2: =ORÇAMENTO!C5 -> PAVIMENTAÇÃO ASFÁLTICA EM CBUQ – ITEM 1 – DIVERSOS LOGRADOUROS - NINHEIRA/MG (SEDE MUNICIPAL) | F2: VALOR: | G2: =ORÇAMENTO!I44 -> 3236866.33
F3: PRAZO: | G3: 180 DIAS
B5: ITEM | C5: ETAPAS/DESCRIÇAO | D5: FISICO/ FINANCEIRO | E5: TOTAL ETAPAS | F5: MÊS 1 | G5: MÊS 2 | H5: MÊS 3 | I5: MÊS 4 | J5: MÊS 5 | K5: MÊS 6 | L5: TOTAL
A6: A | B6: =VLOOKUP(A6,ORÇAMENTO!$A$9:$I$44,2) -> 1 | C6: =VLOOKUP(A6,ORÇAMENTO!$A$9:$I$44,3) -> SERVIÇOS PRELIMINARES | D6: FISICO | E6: =ROUND(E7/$G$2,4) -> 0.0554 | F6: 0.25 | G6: 0.15 | H6: 0.15 | I6: 0.15 | J6: 0.15 | K6: 0.15 | L6: =SUM(F6:K6) -> 1
D7: FINANCEIRO | E7: =ORÇAMENTO!I9 -> 179305.91 | F7: =ROUND($E$7*F6,2) -> 44826.48 | G7: 26895.89 | H7: 26895.89 | I7: 26895.89 | J7: 26895.89 | K7: 26895.89 | L7: 179305.93
A8: B | B8: =VLOOKUP(A8,ORÇAMENTO!$A$9:$I$44,2) -> 2 | C8: =VLOOKUP(A8,ORÇAMENTO!$A$9:$I$44,3) -> PAVIMENTAÇÃO | D8: FISICO | E8: =ROUND(E9/$G$2,4) -> 0.1301 | F8: 0.1 | G8: 0.2 | H8: 0.2 | I8: 0.2 | J8: 0.2 | K8: 0.1 | L8: 1
D9: FINANCEIRO | E9: =ORÇAMENTO!I15 -> 421012.52 | F9: =ROUND($E$9*F8,2) -> 42101.25 | G9: 84202.5 | H9: 84202.5 | I9: 84202.5 | J9: 84202.5 | K9: 42101.25 | L9: 421012.5
A10: C | B10: =VLOOKUP(A10,ORÇAMENTO!$A$9:$I$44,2) -> 3 | C10: =VLOOKUP(A10,ORÇAMENTO!$A$9:$I$44,3) -> TRANSPORTE DE MATERIAIS | D10: FISICO | E10: =ROUND(E11/$G$2,4) -> 0.0121 | F10: 0.1 | G10: 0.2 | H10: 0.2 | I10: 0.2 | J10: 0.2 | K10: 0.1 | L10: 1
D11: FINANCEIRO | E11: =ORÇAMENTO!I24 -> 39242.31 | F11: =ROUND($E$11*F10,2) -> 3924.23 | G11: 7848.46 | H11: 7848.46 | I11: 7848.46 | J11: 7848.46 | K11: 3924.23 | L11: 39242.3
A12: D | B12: =VLOOKUP(A12,ORÇAMENTO!$A$9:$I$44,2) -> 4 | C12: =VLOOKUP(A12,ORÇAMENTO!$A$9:$I$44,3) -> TRANSPORTE DE MATERIAL ASFÁLTICO (BDI DIFERENCIADO) | D12: FISICO | E12: =ROUND(E13/$G$2,4) -> 0.0793 | F12: 0.1 | G12: 0.2 | H12: 0.2 | I12: 0.2 | J12: 0.2 | K12: 0.1 | L12: 1
D13: FINANCEIRO | E13: =ORÇAMENTO!I28 -> 256700 | F13: =ROUND($E$13*F12,2) -> 25670 | G13: 51340 | H13: 51340 | I13: 51340 | J13: 51340 | K13: 25670 | L13: 256700
A14: E | B14: =VLOOKUP(A14,ORÇAMENTO!$A$9:$I$44,2) -> 5 | C14: =VLOOKUP(A14,ORÇAMENTO!$A$9:$I$44,3) -> OBRAS COMPLEMENTARES | D14: FISICO | E14: =ROUND(E15/$G$2,4) -> 0.2342 | F14: 0 | G14: 0.2 | H14: 0.2 | I14: 0.2 | J14: 0.2 | K14: 0.2 | L14: 1
D15: FINANCEIRO | E15: =ORÇAMENTO!I32 -> 758203.91 | F15: =ROUND($E$15*F14,2) -> 0 | G15: 151640.78 | H15: 151640.78 | I15: 151640.78 | J15: 151640.78 | K15: 151640.78 | L15: 758203.9
A16: F | B16: =VLOOKUP(A16,ORÇAMENTO!$A$9:$I$44,2) -> 6 | C16: =VLOOKUP(A16,ORÇAMENTO!$A$9:$I$44,3) -> FORNECIMENTOS - MATERIAL ASFÁLTICO (BDI DIFERENCIADO) | D16: FISICO | E16: =ROUND(E17/$G$2,4) -> 0.4889 | F16: 0.1 | G16: 0.2 | H16: 0.2 | I16: 0.2 | J16: 0.2 | K16: 0.1 | L16: 1
D17: FINANCEIRO | E17: =ORÇAMENTO!I40 -> 1582401.68 | F17: =ROUND($E$17*F16,2) -> 158240.17 | G17: 316480.34 | H17: 316480.34 | I17: 316480.34 | J17: 316480.34 | K17: 158240.17 | L17: 1582401.7
B18: TOTAL | D18: FISICO | E18: =SUM(F18:K18) -> 1 | F18: =F19/$E$19 -> 0.08488522601 | G18: 0.1972302545 | H18: 0.1972302545 | I18: 0.1972302545 | J18: 0.1972302545 | K18: 0.126193756 | L18: 1
D19: FINANCEIRO | E19: =E11+E9+E7+E13+E17+E15 -> 3236866.33 | F19: 274762.13 | G19: 638407.97 | H19: 638407.97 | I19: 638407.97 | J19: 638407.97 | K19: 408472.32 | L19: 3236866.33
B21: OBSERVAÇÕES:
